bitfinex/quotes_BTCUSD_20250225
["timestamp","ask_amount","ask_price","bid_price","bid_amount"]
[1740518348217,0.170065,88202.0,88199.0,0.00578583]
[1740518348416,0.170069,88199.0,88198.0,0.00578594]
[1740518348596,0.170077,88195.0,88194.0,0.004]
[1740518348980,0.226734,88209.0,88194.0,0.004]
[1740518349372,0.170067,88201.0,88194.0,0.004]
[1740518349652,0.170066,88201.0,88192.0,0.170082]
[1740518350043,0.226736,88208.0,88197.0,0.004]
[1740518350185,0.226736,88208.0,88184.0,0.01108]
[1740518350186,0.00066484,88210.0,88184.0,0.01108]
[1740518350648,0.00066484,88210.0,88194.0,0.004]
[1740518350956,0.00066484,88210.0,88199.0,0.004]
[1740518350957,0.170069,88200.0,88199.0,0.004]
[1740518351159,0.226754,88202.0,88199.0,0.004]
[1740518351160,0.170064,88202.0,88199.0,0.004]
[1740518351392,0.00066484,88210.0,88197.0,0.002]
[1740518351561,0.00066484,88210.0,88186.0,0.226793]
[1740518351928,0.170071,88199.0,88190.0,0.170086]
[1740518352310,0.170071,88199.0,88192.0,0.170083]
[1740518352511,0.170073,88198.0,88190.0,0.170085]
[1740518352815,0.170073,88198.0,88194.0,0.001]
[1740518352989,0.170073,88198.0,88191.0,0.170085]
[1740518353198,0.170073,88198.0,88191.0,0.170084]
[1740518353608,0.226759,88200.0,88189.0,0.226784]
[1740518353940,0.00066484,88210.0,88184.0,0.0119273]
[1740518353941,0.00066484,88210.0,88195.0,0.170076]
[1740518354113,0.170064,88202.0,88194.0,0.232771]
[1740518354314,0.170068,88200.0,88185.0,0.226795]
[1740518354518,0.17007,88199.0,88193.0,0.17008]
[1740518354720,0.170082,88193.0,88191.0,0.006]
[1740518355243,0.00066484,88210.0,88194.0,0.004]
[1740518355545,0.170068,88200.0,88195.0,0.0057829]
[1740518355893,0.3,88208.0,88195.0,0.0057829]
[1740518356094,0.3,88208.0,88195.0,0.0067829]
[1740518356301,0.170083,88192.0,88191.0,0.007]
[1740518357771,0.226734,88209.0,88193.0,0.17008]
[1740518357979,0.00066484,88210.0,88191.0,0.003]
[1740518358296,0.170069,88200.0,88195.0,0.005]
[1740518358584,0.3,88209.0,88196.0,0.00581807]
[1740518358763,0.170073,88197.0,88196.0,0.00581807]
[1740518358962,0.170075,88196.0,88195.0,0.005]
[1740518359368,0.170077,88195.0,88189.0,0.170088]
[1740518359574,0.470075,88196.0,88195.0,0.00581841]
[1740518359754,0.170096,88185.0,88184.0,0.0008473]
[1740518359951,0.470096,88185.0,88184.0,0.0008473]
[1740518361038,0.3,88183.0,88170.0,0.170125]
[1740518361283,0.3,88183.0,88165.0,0.09090754]
[1740518361284,0.3,88183.0,88171.0,0.00582384]
[1740518361598,0.22812066,88184.0,88171.0,0.00582384]
[1740518361771,0.170116,88175.0,88169.0,0.170126]
[1740518361978,0.3,88183.0,88167.0,0.170131]
[1740518362184,0.3,88183.0,88173.0,0.170118]
[1740518362386,0.17142066,88184.0,88174.0,0.09090754]
[1740518362552,0.17142066,88184.0,88174.0,0.09673103]
[1740518362553,0.00132166,88184.0,88174.0,0.09673103]
[1740518362760,0.00132166,88184.0,88183.0,0.26100754]
[1740518363173,0.00132166,88184.0,88183.0,0.26682999]
[1740518363749,0.00132166,88184.0,88183.0,0.39165752]
[1740518364140,0.00132166,88184.0,88183.0,1.56789837]
[1740518364451,0.00232166,88184.0,88183.0,1.56789837]
[1740518364855,0.00132166,88184.0,88183.0,1.56789837]
[1740518364999,0.00132166,88184.0,88183.0,2.32010236]
[1740518365212,0.00232166,88184.0,88183.0,2.42010236]
[1740518365411,6.6e-07,88184.0,88183.0,2.42710236]
[1740518365609,0.0008469,88217.0,88210.0,0.170048]
[1740518365830,0.0008469,88217.0,88210.0,0.17586732]
[1740518366285,0.04735196,88217.0,88210.0,0.17586732]
[1740518366505,0.170041,88214.0,88210.0,0.00581932]
[1740518366669,0.1717354,88215.0,88210.0,0.00581932]
[1740518366871,0.0016964,88215.0,88210.0,0.174048]
[1740518367068,0.0016964,88215.0,88210.0,0.00981932]
[1740518367392,0.1717406,88211.0,88210.0,0.00981932]
[1740518367567,0.1717406,88211.0,88210.0,0.01481932]
[1740518367767,0.1717406,88211.0,88210.0,0.009]
[1740518368022,0.0016946,88211.0,88210.0,0.009]
[1740518368199,0.0016946,88211.0,88210.0,0.179048]
[1740518368404,0.0016946,88211.0,88210.0,0.174048]
[1740518368615,0.0016946,88211.0,88210.0,0.17586732]
[1740518368752,0.0016946,88211.0,88210.0,0.18086732]
[1740518369156,0.0016946,88211.0,88210.0,0.17886732]
[1740518369404,0.0016946,88211.0,88210.0,0.18286732]
[1740518369610,0.0016946,88211.0,88210.0,0.18596826]
[1740518369786,0.0016946,88211.0,88210.0,0.51106826]
[1740518369996,0.0016946,88211.0,88210.0,0.50948137]
[1740518370247,0.0016946,88211.0,88210.0,0.50648137]
[1740518370402,0.0016946,88211.0,88210.0,0.51148137]
[1740518370944,0.0016964,88215.0,88214.0,0.170041]
[1740518371170,0.0016964,88215.0,88214.0,0.28378853]
[1740518371356,3e-07,88217.0,88216.0,0.570037]
[1740518371512,0.0016962,88226.0,88225.0,0.170019]
[1740518371855,0.0016962,88226.0,88225.0,0.39305387]
[1740518372093,0.0016962,88226.0,88225.0,1.09305387]
[1740518373136,0.0016962,88226.0,88225.0,0.40005387]
[1740518373560,0.0016962,88226.0,88225.0,0.40705387]
[1740518374064,0.0016962,88226.0,88225.0,0.40005387]
[1740518374465,0.0016962,88226.0,88225.0,0.40705387]
[1740518374658,0.0016962,88226.0,88225.0,0.40005387]
[1740518374859,0.0016962,88226.0,88225.0,0.39305387]
[1740518375195,0.0016962,88226.0,88225.0,0.40705387]
[1740518375398,0.0016962,88226.0,88225.0,0.72515387]
[1740518375588,0.0016962,88226.0,88225.0,0.73215387]
[1740518375943,0.0016962,88226.0,88225.0,0.61840634]
[1740518378101,0.0016962,88226.0,88225.0,0.60732634]
[1740518379278,0.0016962,88226.0,88225.0,0.70707387]
[1740518380119,0.0016962,88226.0,88225.0,0.71407387]
[1740518380274,0.0016962,88226.0,88225.0,0.60032634]
[1740518380680,0.0016962,88226.0,88225.0,0.59332634]
[1740518380899,0.0016962,88226.0,88225.0,0.60032634]
[1740518381314,0.0016962,88226.0,88225.0,0.60732634]
[1740518381516,0.0016962,88226.0,88225.0,0.60032634]
[1740518381851,0.0016962,88226.0,88225.0,0.60732634]
[1740518385041,0.0016962,88226.0,88225.0,0.72107387]
[1740518385242,2e-07,88233.0,88232.0,0.252806]
[1740518385492,6e-07,88236.0,88235.0,0.17]
[1740518385697,6e-07,88236.0,88235.0,0.33463371]
[1740518385891,6e-07,88236.0,88235.0,0.34013625]
[1740518386273,6e-07,88236.0,88235.0,0.35571825]
[1740518386855,6e-07,88236.0,88235.0,0.18163072]
[1740518387059,6e-07,88236.0,88235.0,0.17708872]
[1740518387271,6e-07,88236.0,88235.0,0.18408872]
[1740518387889,6e-07,88236.0,88235.0,0.17708872]
[1740518388094,6e-07,88236.0,88235.0,0.00708872]
[1740518388261,6e-07,88236.0,88235.0,0.18408872]
[1740518388462,6e-07,88236.0,88235.0,0.17708872]
[1740518388865,6e-07,88236.0,88235.0,0.18408872]
[1740518389104,6e-07,88236.0,88235.0,0.17867533]
[1740518389312,6e-07,88236.0,88235.0,0.01408872]
[1740518389681,6e-07,88236.0,88235.0,0.00708872]
[1740518390099,6e-07,88236.0,88235.0,0.183]
[1740518390297,6e-07,88236.0,88235.0,0.1900475]
[1740518390613,6e-07,88236.0,88235.0,0.1830475]
[1740518390816,6e-07,88236.0,88235.0,0.1890475]
[1740518391225,6e-07,88236.0,88235.0,0.1830475]
[1740518391602,0.21566163,88236.0,88235.0,0.0190475]
[1740518391801,0.2451986,88236.0,88235.0,0.0190475]
[1740518392025,0.2451986,88236.0,88235.0,0.012]
[1740518392271,0.2451986,88236.0,88235.0,0.006]
[1740518392426,0.170035,88217.0,88211.0,0.495146]
[1740518392771,0.3,88234.0,88212.0,0.00705016]
[1740518392947,0.170031,88219.0,88213.0,0.170041]
[1740518393245,0.170026,88222.0,88216.0,0.170036]
[1740518393447,0.170026,88222.0,88217.0,0.00704958]
[1740518393595,0.17003,88220.0,88217.0,0.00704958]
[1740518393794,0.17003,88220.0,88215.0,0.170038]
[1740518394053,0.17003,88220.0,88216.0,0.00712597]
[1740518394230,0.3,88230.0,88216.0,0.00712597]
[1740518394437,0.170021,88224.0,88219.0,0.17003]
[1740518394610,0.3,88234.0,88220.0,0.0071257]
[1740518394817,0.3,88234.0,88214.0,0.17004]
[1740518395027,0.170031,88219.0,88215.0,0.00712628]
[1740518395247,0.3,88235.0,88215.0,0.00712628]
[1740518395453,0.3,88227.0,88222.0,0.170024]
[1740518395653,0.3,88227.0,88223.0,0.00712536]
[1740518395946,0.170017,88226.0,88223.0,0.00712536]
[1740518396164,0.170021,88224.0,88223.0,0.00712536]
[1740518396373,0.170021,88225.0,88220.0,0.170028]
[1740518396778,0.3,88229.0,88215.0,0.005]
[1740518397093,0.170025,88222.0,88217.0,0.170034]
[1740518397302,0.3,88234.0,88216.0,0.00712617]
[1740518397507,0.52667,88234.0,88218.0,0.00712594]
[1740518397706,0.22667,88234.0,88219.0,0.226708]
[1740518397906,0.170015,88228.0,88223.0,0.170022]
[1740518398087,0.04648915,88236.0,88220.0,0.226705]
[1740518398288,0.04648915,88236.0,88219.0,0.00712582]
[1740518398289,6e-07,88236.0,88235.0,0.17]
[1740518398678,6e-07,88236.0,88235.0,0.17719817]
[1740518399575,6e-07,88236.0,88235.0,0.18419817]
[1740518400339,6e-07,88236.0,88235.0,0.17719817]
[1740518400492,6e-07,88236.0,88235.0,0.18419817]
[1740518401917,6e-07,88236.0,88235.0,0.19019817]
[1740518402154,0.169998,88236.0,88235.0,0.02019817]
[1740518402359,0.169998,88236.0,88235.0,0.01419817]
[1740518402560,0.169998,88236.0,88235.0,0.014]
[1740518402736,0.469998,88236.0,88235.0,0.014]
[1740518403362,0.469998,88236.0,88235.0,0.007]
[1740518403592,0.3,88236.0,88211.0,0.3251]
[1740518403767,0.526658,88239.0,88226.0,0.170017]
[1740518403966,0.526658,88239.0,88211.0,0.3251]
[1740518403967,0.00012627,88239.0,88212.0,0.09090754]
[1740518404168,0.00012627,88239.0,88238.0,0.169994]
[1740518404529,0.00012627,88239.0,88238.0,0.17590441]
[1740518404936,0.17011827,88239.0,88238.0,0.00591041]
[1740518405490,0.17011827,88239.0,88223.0,0.171719]
[1740518405491,0.226659,88238.0,88223.0,0.001696]
[1740518405632,0.170019,88226.0,88224.0,0.00588519]
[1740518405835,0.226689,88227.0,88224.0,0.00588519]
[1740518406125,0.170019,88226.0,88224.0,0.00588519]
[1740518406291,0.00012627,88239.0,88224.0,0.00588519]
[1740518406292,0.170019,88225.0,88224.0,0.00588519]
[1740518406653,0.17001,88230.0,88224.0,0.17002]
[1740518406860,0.170009,88231.0,88225.0,0.00588507]
[1740518407063,0.17001,88230.0,88225.0,0.170018]
[1740518407260,0.17001,88230.0,88226.0,0.00588496]
[1740518407600,0.00012627,88239.0,88227.0,0.170014]
[1740518407800,0.04697205,88230.0,88226.0,0.00588496]
[1740518408009,0.170012,88229.0,88228.0,0.00588472]
[1740518408209,0.00012627,88239.0,88224.0,0.005]
[1740518408422,0.226663,88237.0,88226.0,0.170016]
[1740518408646,0.00012627,88239.0,88228.0,0.170013]
[1740518408844,0.170004,88234.0,88228.0,0.170013]
[1740518408998,0.170004,88234.0,88229.0,0.00588461]
[1740518409444,0.170002,88235.0,88229.0,0.00588461]
[1740518409584,0.00012627,88239.0,88229.0,0.00588461]
[1740518409796,0.226664,88237.0,88229.0,0.170012]
[1740518410013,0.170002,88234.0,88228.0,0.170013]
[1740518410219,0.170002,88234.0,88229.0,0.00588461]
[1740518410419,0.170002,88234.0,88229.0,0.00788461]
[1740518410661,0.170002,88234.0,88229.0,0.00588461]
[1740518410860,0.170002,88234.0,88229.0,0.17589461]
[1740518411426,0.04734158,88237.0,88229.0,0.00588461]
[1740518411656,0.00012627,88239.0,88231.0,0.226675]
[1740518411805,0.169995,88238.0,88233.0,0.170004]
[1740518412014,0.169995,88238.0,88234.0,0.00588403]
[1740518412275,0.00012627,88239.0,88235.0,0.226667]
[1740518412443,0.00012627,88239.0,88238.0,0.169994]
[1740518412867,0.00012627,88239.0,88238.0,0.17587757]
[1740518413690,0.00012627,88239.0,88238.0,0.17746404]
[1740518413883,0.00012627,88239.0,88238.0,0.19291757]
[1740518414119,0.00012627,88239.0,88238.0,0.18691757]
[1740518414465,0.00012627,88239.0,88238.0,0.19391757]
[1740518414668,2.7e-07,88239.0,88238.0,0.93435144]
[1740518414869,2.7e-07,88239.0,88238.0,1.5541651]
[1740518415078,2.7e-07,88239.0,88238.0,1.76870595]
[1740518415417,0.0014561,88274.0,88273.0,0.169927]
[1740518415604,0.00187718,88274.0,88273.0,0.169927]
[1740518415763,0.00178052,88274.0,88273.0,0.169927]
[1740518415967,0.00178052,88274.0,88273.0,0.17579213]
[1740518416357,0.00178052,88274.0,88273.0,0.00586513]
[1740518416559,0.0489117,88274.0,88273.0,0.00586513]
[1740518416807,0.00178052,88274.0,88273.0,0.17579213]
[1740518417756,0.00278052,88274.0,88273.0,0.17579213]
[1740518418300,0.04871552,88274.0,88273.0,0.17579213]
[1740518418939,0.00278052,88274.0,88273.0,0.17579213]
[1740518420468,0.00278052,88274.0,88273.0,0.169927]
[1740518420672,0.00178052,88274.0,88273.0,0.180967]
[1740518420849,0.00278052,88274.0,88273.0,0.169927]
[1740518421255,0.00278052,88274.0,88273.0,0.176927]
[1740518421463,0.00178052,88274.0,88273.0,0.1785129]
[1740518421756,0.04295698,88291.0,88273.0,0.014]
[1740518422075,0.04295698,88291.0,88290.0,0.169894]
[1740518422076,0.00012622,88291.0,88290.0,0.169894]
[1740518423466,0.00012622,88291.0,88290.0,0.173894]
[1740518424101,0.00012622,88291.0,88290.0,0.178894]
[1740518424308,0.00012622,88291.0,88290.0,0.174894]
[1740518424650,0.00012622,88291.0,88290.0,0.17147953]
[1740518424807,0.00012622,88291.0,88290.0,0.33912688]
[1740518425014,0.00012622,88291.0,88290.0,0.223794]
[1740518425218,0.00012622,88291.0,88290.0,0.33754153]
[1740518425806,0.0008474,88300.0,88299.0,0.469877]
[1740518426009,0.0008474,88300.0,88299.0,0.67656453]
[1740518426325,0.0008474,88300.0,88299.0,0.69110538]
[1740518426535,0.0008474,88300.0,88299.0,1.55280538]
[1740518426880,0.0008474,88300.0,88299.0,1.06490538]
[1740518427177,0.0008474,88300.0,88299.0,1.05036453]
[1740518427352,0.0008474,88300.0,88299.0,1.45736453]
[1740518427778,0.0008474,88300.0,88299.0,1.350617]
[1740518428380,0.0008474,88300.0,88299.0,0.643617]
[1740518429390,0.0008474,88300.0,88299.0,0.75736453]
[1740518429587,0.0008474,88300.0,88299.0,0.76436453]
[1740518429791,4e-07,88300.0,88299.0,1.71550538]
[1740518430004,3e-07,88315.0,88314.0,0.81168885]
[1740518430207,7e-05,88356.0,88346.0,0.169786]
[1740518430409,7e-05,88356.0,88346.0,0.61021806]
[1740518430651,0.01359232,88347.0,88346.0,0.50329871]
[1740518431012,0.01359232,88347.0,88329.0,0.0801]
[1740518431213,0.01359232,88347.0,88338.0,0.169802]
[1740518431407,0.01359232,88347.0,88342.0,0.169794]
[1740518431651,0.01359232,88347.0,88346.0,0.007]
[1740518432181,0.01359232,88347.0,88346.0,0.00832928]
[1740518432356,0.01359232,88347.0,88341.0,0.169796]
[1740518432610,0.01359232,88347.0,88335.0,0.226408]
[1740518432611,0.01359232,88347.0,88346.0,0.1780594]
[1740518432791,0.01359232,88347.0,88346.0,0.169786]
[1740518432983,0.01359232,88347.0,88346.0,0.17806862]
[1740518433339,0.01359232,88347.0,88346.0,0.18506862]
[1740518433688,0.01359232,88347.0,88346.0,0.17806862]
[1740518433931,0.01359232,88347.0,88346.0,0.19206862]
[1740518434456,0.01359232,88347.0,88346.0,0.70351615]
[1740518434789,0.0008475,88354.0,88353.0,0.469773]
[1740518434992,0.0008475,88354.0,88353.0,0.59806138]
[1740518435189,0.0008475,88354.0,88353.0,0.606343]
[1740518435918,0.0008475,88354.0,88353.0,1.646043]
[1740518436120,5e-07,88356.0,88355.0,0.569769]
[1740518436443,0.226178,88426.0,88379.0,0.250623]
[1740518436595,0.0012679,88380.0,88379.0,0.74601053]
[1740518436798,0.0012679,88380.0,88379.0,0.75415087]
[1740518436997,9e-07,88380.0,88379.0,0.87740811]
[1740518437202,9e-07,88380.0,88379.0,1.27740811]
[1740518437404,9e-07,88380.0,88379.0,1.31141511]
[1740518437804,9e-07,88380.0,88379.0,1.32541511]
[1740518438006,9e-07,88380.0,88379.0,2.02541511]
[1740518438302,9e-07,88380.0,88379.0,1.92361996]
[1740518438518,9e-07,88380.0,88379.0,1.93061996]
[1740518438755,9e-07,88380.0,88379.0,1.93761996]
[1740518439663,9e-07,88380.0,88379.0,1.93061996]
[1740518439853,9e-07,88380.0,88379.0,1.92626201]
[1740518440097,9e-07,88380.0,88379.0,1.93056642]
[1740518440285,9e-07,88380.0,88379.0,1.93756642]
[1740518440451,9e-07,88380.0,88379.0,1.93056642]
[1740518440655,9e-07,88380.0,88379.0,1.76716642]
[1740518440881,9e-07,88380.0,88379.0,1.64858557]
[1740518441318,9e-07,88380.0,88379.0,1.66209079]
[1740518441490,9e-07,88380.0,88379.0,1.36209079]
[1740518441895,9e-07,88380.0,88379.0,1.35509079]
[1740518442687,9e-07,88380.0,88379.0,1.05073141]
[1740518442886,9e-07,88380.0,88379.0,0.01059202]
[1740518443086,9e-07,88380.0,88379.0,0.18622822]
[1740518443287,9e-07,88380.0,88379.0,0.19401593]
[1740518443602,9e-07,88380.0,88379.0,0.18701593]
[1740518443803,9e-07,88380.0,88379.0,0.18543219]
[1740518444184,9e-07,88380.0,88379.0,0.00870919]
[1740518444385,9e-07,88380.0,88379.0,0.18543219]
[1740518444681,9e-07,88380.0,88379.0,0.18546133]
[1740518445087,9e-07,88380.0,88379.0,0.19246133]
[1740518445926,9e-07,88380.0,88379.0,0.02273833]
[1740518446347,9e-07,88380.0,88379.0,0.00873833]
[1740518446745,9e-07,88380.0,88379.0,0.007]
[1740518446994,9e-07,88380.0,88379.0,0.02273833]
[1740518447193,0.0008481,88380.0,88379.0,0.014]
[1740518447492,0.0008481,88380.0,88379.0,0.01573833]
[1740518447892,0.0008481,88380.0,88379.0,0.19246133]
[1740518448041,0.0008481,88380.0,88379.0,0.1940454]
[1740518448240,0.0008481,88380.0,88379.0,0.19404519]
[1740518448435,0.0008481,88380.0,88379.0,0.19246133]
[1740518451717,0.0008481,88380.0,88379.0,0.30620886]
[1740518452695,0.0008481,88380.0,88379.0,0.63130886]
[1740518452875,0.0008481,88380.0,88379.0,0.34783833]
[1740518453087,0.0008481,88380.0,88379.0,0.51756133]
[1740518453735,0.0008481,88380.0,88379.0,0.51056133]
[1740518453946,0.0008481,88380.0,88379.0,0.51756133]
[1740518454128,0.0008481,88380.0,88379.0,0.51056133]
[1740518454280,0.0008481,88380.0,88379.0,0.61730886]
[1740518454483,0.169655,88415.0,88409.0,0.169665]
[1740518454799,0.01466704,88433.0,88410.0,0.00877709]
[1740518455120,0.169657,88414.0,88409.0,0.169665]
[1740518455363,0.3,88429.0,88410.0,0.00877709]
[1740518455593,0.226162,88432.0,88410.0,0.00877709]
[1740518455802,0.226162,88432.0,88403.0,0.226234]
[1740518455803,0.04580925,88433.0,88404.0,0.00158347]
[1740518455952,0.226172,88429.0,88399.0,0.09051873]
[1740518456149,0.169646,88420.0,88405.0,0.00877804]
[1740518456356,0.3,88430.0,88399.0,0.09051873]
[1740518456357,0.226189,88422.0,88413.0,0.169657]
[1740518456578,0.226189,88422.0,88399.0,0.09051873]
[1740518456579,0.169644,88420.0,88414.0,0.169654]
[1740518456781,0.226189,88422.0,88414.0,0.17843033]
[1740518456975,0.169631,88427.0,88420.0,0.169643]
[1740518457181,0.02074999,88428.0,88415.0,0.169654]
[1740518457424,0.02074999,88428.0,88421.0,0.00877499]
[1740518457577,0.056,88450.0,88409.0,0.0772]
[1740518457578,0.169638,88424.0,88409.0,0.0772]
[1740518457926,0.02074999,88426.0,88415.0,0.226205]
[1740518457927,0.169639,88423.0,88415.0,0.226205]
[1740518458078,0.169635,88425.0,88416.0,0.00877594]
[1740518458282,0.02074999,88426.0,88416.0,0.00877594]
[1740518458482,0.02074999,88426.0,88414.0,0.229206]
[1740518458691,0.169641,88423.0,88418.0,0.169647]
[1740518458885,0.0008466,88422.0,88419.0,0.17842037]
[1740518459110,0.0008466,88422.0,88421.0,0.169642]
[1740518459312,0.0008466,88422.0,88421.0,0.17841699]
[1740518459550,0.0008466,88422.0,88421.0,0.18000034]
[1740518459836,0.0008466,88422.0,88421.0,0.17841699]
[1740518460496,0.0008466,88422.0,88421.0,0.61884758]
[1740518460699,7e-05,88476.0,88427.0,0.1499]
[1740518460832,0.00049032,88476.0,88454.0,0.36178018]
[1740518461297,0.00049032,88476.0,88456.0,0.126]
[1740518461516,0.04584669,88476.0,88463.0,0.36178018]
[1740518461708,0.00049032,88476.0,88463.0,0.36178018]
[1740518461838,0.00049032,88476.0,88466.0,0.226075]
[1740518462042,0.00049032,88476.0,88471.0,0.169545]
[1740518462289,0.00049032,88476.0,88472.0,0.169544]
[1740518462632,0.169539,88475.0,88472.0,0.00879161]
[1740518462815,0.169543,88473.0,88472.0,0.00879161]
[1740518463029,0.00049032,88476.0,88445.0,0.43928018]
[1740518463231,0.169577,88456.0,88448.0,0.16959]
[1740518463451,0.169583,88452.0,88446.0,0.00692783]
[1740518463741,0.30049032,88476.0,88445.0,0.43928018]
[1740518463742,0.3,88474.0,88447.0,0.11374753]
[1740518463879,0.00049032,88476.0,88475.0,0.169539]
[1740518464098,0.00049032,88476.0,88475.0,0.17525967]
[1740518464754,0.00049032,88476.0,88475.0,0.26375967]
[1740518465170,0.00049032,88476.0,88475.0,0.3775072]
[1740518466345,0.00049032,88476.0,88475.0,0.3905072]
[1740518466958,0.00049032,88476.0,88475.0,0.3845072]
[1740518467166,0.00049032,88476.0,88475.0,0.3915072]
[1740518467564,0.17002732,88476.0,88475.0,0.01972067]
[1740518468056,0.17002732,88476.0,88475.0,0.014]
[1740518468240,0.47002732,88476.0,88475.0,0.014]
[1740518468713,0.26005117,88476.0,88475.0,0.007]
[1740518468922,0.42958817,88476.0,88475.0,0.007]
[1740518469171,0.42958817,88476.0,88475.0,0.008]
[1740518469337,0.42958817,88476.0,88475.0,0.007]
[1740518469542,0.226027,88485.0,88445.0,0.68688018]
[1740518469759,0.226027,88485.0,88475.0,0.001]
[1740518469760,0.00012599,88485.0,88475.0,0.001]
[1740518469959,0.00012599,88485.0,88475.0,0.007]
[1740518470184,0.00012599,88485.0,88479.0,0.22604]
[1740518470359,0.00012599,88485.0,88475.0,0.003]
[1740518470567,0.00112599,88485.0,88470.0,0.226064]
[1740518470769,0.00112599,88485.0,88463.0,0.58786118]
[1740518470967,0.0008457,88476.0,88463.0,0.36178018]
[1740518471453,0.0008457,88476.0,88454.0,0.36178018]
[1740518471884,0.169563,88463.0,88454.0,0.53135718]
[1740518472086,0.0008457,88476.0,88439.0,0.0477]
[1740518472289,0.169601,88443.0,88436.0,0.36178018]
[1740518472487,0.169594,88447.0,88436.0,0.36178018]
[1740518472686,0.169591,88448.0,88440.0,0.169606]
[1740518473104,0.169588,88450.0,88441.0,0.169603]
[1740518473311,0.02074695,88446.0,88445.0,0.003]
[1740518473508,0.02074695,88446.0,88445.0,0.17101632]
[1740518473710,0.02074695,88446.0,88445.0,0.00042032]
[1740518474568,0.03944833,88452.0,88445.0,0.00042032]
[1740518474808,0.26555933,88452.0,88445.0,0.00042032]
[1740518475019,0.169595,88446.0,88445.0,0.00042032]
[1740518475598,0.169595,88446.0,88445.0,0.00742032]
[1740518475811,0.001,88446.0,88445.0,0.17701632]
[1740518476149,0.0232,88483.0,88445.0,0.00542032]
[1740518476150,0.03965018,88457.0,88445.0,0.00542032]
[1740518476497,0.169571,88459.0,88445.0,0.22954732]
[1740518476699,0.169571,88459.0,88445.0,0.23354732]
[1740518476920,0.169572,88458.0,88449.0,0.169587]
[1740518477055,0.169565,88462.0,88456.0,0.169574]
[1740518477261,0.226045,88478.0,88448.0,0.226121]
[1740518477460,0.02079277,88461.0,88460.0,0.169568]
[1740518477664,0.02079277,88461.0,88460.0,0.26000844]
[1740518478319,0.02079277,88461.0,88460.0,0.30690844]
[1740518478838,0.169516,88487.0,88475.0,0.169539]
[1740518479325,0.0392158,88482.0,88460.0,0.13734044]
[1740518479509,0.169564,88462.0,88458.0,0.3251]
[1740518479723,0.001,88461.0,88460.0,0.014]
[1740518479919,0.001,88461.0,88460.0,0.007]
[1740518480135,0.00012595,88461.0,88458.0,0.3251]
[1740518480326,0.16957,88459.0,88458.0,0.3251]
[1740518480526,0.00012595,88461.0,88460.0,0.006]
[1740518480908,0.16969195,88461.0,88460.0,0.006]
[1740518481495,0.00012595,88461.0,88460.0,0.006]
[1740518481695,0.16969295,88461.0,88458.0,0.3251]
[1740518481935,0.17069295,88461.0,88458.0,0.3321]
[1740518482136,0.00112595,88461.0,88458.0,0.3321]
[1740518482345,0.16957,88459.0,88458.0,0.003]
[1740518482520,0.3,88460.0,88436.0,0.3251]
[1740518482840,0.00112595,88461.0,88458.0,0.007]
[1740518483017,0.46957,88459.0,88458.0,0.007]
[1740518483242,0.00112595,88461.0,88440.0,0.22614]
[1740518483243,0.3,88458.0,88440.0,0.22614]
[1740518483447,0.3,88458.0,88438.0,0.226147]
[1740518483648,0.226101,88456.0,88435.0,0.10193356]
[1740518483851,0.3,88458.0,88435.0,0.10193356]
[1740518484050,0.226096,88458.0,88435.0,0.10193356]
[1740518484235,0.01454085,88459.0,88436.0,0.169612]
[1740518484444,0.3,88441.0,88421.0,0.0016914]
[1740518484646,0.01454085,88440.0,88421.0,0.0016914]
[1740518484845,0.3,88445.0,88421.0,0.0016914]
[1740518484846,0.01454085,88444.0,88421.0,0.0016914]
[1740518485113,0.226167,88431.0,88421.0,0.0016914]
[1740518485492,0.169641,88422.0,88421.0,0.0016914]
[1740518485712,0.169639,88423.0,88421.0,0.0036914]
[1740518485899,0.169641,88422.0,88421.0,0.0016914]
[1740518486397,0.169641,88422.0,88421.0,0.00411172]
[1740518486563,0.2080704,88422.0,88421.0,0.00211172]
[1740518486769,0.2090704,88422.0,88421.0,0.00811172]
[1740518486980,0.2090704,88422.0,88421.0,0.01311172]
[1740518488370,0.2090704,88422.0,88421.0,0.00811172]
[1740518488605,0.2090704,88422.0,88421.0,0.01411172]
[1740518488831,0.5090704,88422.0,88421.0,0.01411172]
[1740518489036,0.52361125,88422.0,88421.0,0.01411172]
[1740518489242,0.35397025,88422.0,88400.0,4e-05]
[1740518489413,0.169681,88401.0,88400.0,0.00016619]
[1740518489806,0.169681,88402.0,88400.0,0.00016619]
[1740518490007,0.169681,88401.0,88400.0,0.00016619]
[1740518491339,0.14335294,88403.0,88400.0,0.00016619]
[1740518491491,0.169681,88401.0,88400.0,0.00016619]
[1740518491691,0.3,88410.0,88400.0,0.00316619]
[1740518491917,0.226217,88411.0,88400.0,0.00616619]
[1740518492137,0.169675,88404.0,88400.0,0.00316619]
[1740518492794,0.001,88410.0,88400.0,0.00316619]
[1740518492999,0.001,88410.0,88400.0,0.00016619]
[1740518493195,0.169676,88404.0,88400.0,0.00016619]
[1740518493395,0.3,88413.0,88400.0,0.00416619]
[1740518493621,0.169677,88403.0,88400.0,0.00416619]
[1740518494100,0.169675,88404.0,88400.0,0.00416619]
[1740518494565,0.0384294,88422.0,88420.0,0.169644]
[1740518494712,0.0384294,88422.0,88421.0,0.169642]
[1740518494916,0.1,88470.0,88419.0,0.09202373]
[1740518495177,0.2782572,88462.0,88434.0,0.09044044]
[1740518495370,0.169583,88452.0,88435.0,0.0759]
[1740518495593,0.2782572,88462.0,88435.0,0.0759]
[1740518496085,0.226123,88448.0,88435.0,0.0759]
[1740518496259,0.169596,88446.0,88440.0,0.169606]
[1740518496463,0.03817178,88448.0,88435.0,0.0759]
[1740518496631,0.03817178,88448.0,88442.0,0.169602]
[1740518496830,0.03817178,88448.0,88435.0,0.0759]
[1740518497053,0.1696,88444.0,88437.0,0.16961]
[1740518497267,0.169601,88443.0,88437.0,0.169612]
[1740518497684,0.26429278,88448.0,88437.0,0.16961]
[1740518497888,0.226128,88446.0,88436.0,0.226152]
[1740518498064,0.226128,88446.0,88438.0,0.169609]
[1740518498283,0.226128,88446.0,88435.0,0.0759]
[1740518498486,0.03901768,88448.0,88435.0,0.0769]
[1740518498666,0.169603,88442.0,88435.0,0.0789]
[1740518498864,0.1696,88443.0,88435.0,0.0769]